fUSD/lending_fUSD_20250215
["ID","MTS","AMOUNT","RATE_DAILY","PERIOD"]
[353165270,1739618227293,-150.0,0.00024036,120]
[353165271,1739618227319,-150.0,0.00024129,120]
[353165272,1739618227346,-150.0,0.00024433,120]
[353165273,1739618227371,-150.5,0.0002467,120]
[353165274,1739618227396,-150.5,0.0002467,120]
[353165275,1739618227423,-150.5,0.0002468,120]
[353165276,1739618227448,-150.5,0.0002468,120]
[353165277,1739618227474,-150.5,0.0002469,120]
[353165278,1739618227655,-150.5,0.0002469,120]
[353165279,1739618227682,-150.0,0.00024794,120]
[353165280,1739618227707,-227.96210417,0.00024899,120]
[353165281,1739618227731,-150.5,0.0002497,120]
[353165282,1739618227756,-150.5,0.0002497,120]
[353165283,1739618227781,-590.0,0.0002497,120]
[353165284,1739618227811,-590.0,0.0002497,120]
[353165285,1739618227837,-158.51,0.0002497,120]
[353165286,1739618227861,-286.93,0.0002497,120]
[353165287,1739618227891,-150.0,0.00024976,120]
[353165288,1739618227916,-150.5,0.0002498,120]
[353165289,1739618227943,-150.5,0.0002498,120]
[353165290,1739618227968,-150.5,0.0002498,120]
[353165291,1739618227993,-150.5,0.0002498,120]
[353165292,1739618228020,-150.5,0.0002498,120]
[353165293,1739618228044,-590.0,0.0002498,120]
[353165294,1739618228070,-590.0,0.0002498,120]
[353165295,1739618228095,-590.0,0.0002498,120]
[353165296,1739618228120,-590.7,0.0002498,120]
[353165297,1739618228146,-286.5,0.0002498,120]
[353165298,1739618228172,-150.5,0.0002499,120]
[353165299,1739618228199,-150.5,0.0002499,120]
[353165300,1739618228226,-150.5,0.0002499,120]
[353165301,1739618228252,-150.5,0.0002499,120]
[353165302,1739618228284,-150.5,0.0002499,120]
[353165303,1739618228311,-150.5,0.0002499,120]
[353165304,1739618228338,-590.0,0.0002499,120]
[353165305,1739618228363,-590.0,0.0002499,120]
[353165306,1739618228388,-590.0,0.0002499,120]
[353165307,1739618228414,-590.0,0.0002499,120]
[353165308,1739618228438,-237.68,0.0002499,120]
[353165309,1739618228463,-171.07,0.0002499,120]
[353165310,1739618228488,-4805.02452598,0.00025,120]
[353165311,1739618228513,-500.0,0.00025,120]
[353165312,1739618228539,-3208.37880498,0.00025,60]
[353165313,1739618228564,-1948.27935576,0.00025,120]
[353165314,1739618228588,-200.0,0.00025,120]
[353165315,1739618228613,-2000.0,0.00025194,120]
[353165316,1739618228639,-200.0,0.00025194,120]
[353165317,1739618228664,-150.0,0.0002535,120]
[353165318,1739618228690,-150.0,0.00025372,120]
[353165319,1739618228714,-500.0,0.00025408,120]
[353165320,1739618228739,-150.0,0.00025772,120]
[353165321,1739618228765,-150.0,0.00025814,120]
[353165322,1739618228793,-45256.0,0.00026,120]
[353165323,1739618228819,-500.0,0.00026,120]
[353165324,1739618228845,-1350.0,0.00026,60]
[353165325,1739618228870,-3799.999999,0.00026,68]
[353165326,1739618228895,-40105.19010387,0.00026,60]
[353165327,1739618228921,-150.0,0.00026034,120]
[353165328,1739618228946,-954.69690616,0.00026325,90]
[353165329,1739618228970,-500.0,0.00026351,120]
[353165330,1739618228996,-150.0,0.00026669,120]
[353165331,1739618229022,-2142.837643,0.00026694,120]
[353165332,1739618229046,-307.642603,0.00026694,120]
[353165333,1739618229070,-150.0,0.00026812,120]
[353165334,1739618229095,-150.0,0.00026824,120]
[353165335,1739618229119,-1265.39676577,0.00026841,120]
[353165336,1739618229145,-150.0,0.00026863,120]
[353165337,1739618229172,-800.0,0.00026986,120]
[353165338,1739618229197,-800.0,0.00026986,120]
[353165339,1739618229221,-412.6,0.00026986,120]
[353165340,1739618229246,-555.55555,0.00027,120]
[353165341,1739618229273,-500.0,0.00027,120]
[353165342,1739618229299,-19315.46726708,0.00027,60]
[353165343,1739618229323,-3854.68856047,0.00027,60]
[353165344,1739618229348,-555.55555,0.000272,120]
[353165345,1739618229373,-500.0,0.00027294,120]
[353165346,1739618229398,-1033.09880456,0.0002736,120]
[353165347,1739618229426,-596.46,0.00027397,120]
[353165348,1739618229451,-1816.26,0.00027397,120]
[353165349,1739618281485,-150.0,0.00020036,120]
[353165350,1739618281563,-158.65,0.0002499,120]
[353165351,1739618281596,-555.55555,0.000274,120]
[353165352,1739618281624,-555.55555,0.000276,120]
[353165353,1739618281649,-150.0,0.00027689,120]
[353165354,1739618281674,-150.0,0.00027788,120]
[353165355,1739618281701,-555.55555,0.000278,120]
[353165356,1739618281726,-555.55555,0.00028,120]
[353165357,1739618281752,-304.96240555,0.00028,120]
[353165358,1739618281777,-500.0,0.00028,120]
[353165359,1739618281803,-150.0,0.00028192,120]
[353165360,1739618281831,-555.55555,0.000282,120]
[353165361,1739618281857,-500.0,0.00028237,120]
[353165362,1739618281882,-150.0,0.00028378,120]
[353165363,1739618281908,-555.55555,0.000284,120]
[353165364,1739618281933,-150.0,0.00028433,120]
[353165365,1739618281959,-150.0,0.00028489,120]
[353165366,1739618281984,-2557.32414035,0.000285,120]
[353165367,1739618282008,-555.5556,0.000286,120]
[353165368,1739618282033,-150.0,0.00028749,120]
[353165369,1739618282058,-150.0,0.00028758,120]
[353165370,1739618282083,-2192.23864015,0.000288,120]
[353165371,1739618282107,-10000.0,0.00029,120]
[353165372,1739618282132,-1115.79405494,0.00029,120]
[353165373,1739618282157,-500.0,0.00029,120]
[353165374,1739618282182,-1825.0,0.00029,120]
[353165375,1739618282207,-581.0,0.00029,120]
[353165376,1739618282232,-500.0,0.00029179,120]
[353165377,1739618282259,-150.0,0.00029244,120]
[353165378,1739618282287,-150.0,0.00029299,120]
[353165379,1739618282313,-150.0,0.0002951,120]
[353165380,1739618282340,-150.0,0.00029556,120]
[353165381,1739618282365,-8184.89,0.000298,120]
[353165382,1739618282389,-8184.89,0.000298,120]
[353165383,1739618282414,-8184.89,0.000298,120]
[353165384,1739618282439,-2728.29,0.000298,120]
[353165385,1739618282465,-2266.70013483,0.000299,120]
[353165386,1739618282492,-150.0,0.00029986,120]
[353165387,1739618282517,-1000.0,0.00029999,120]
[353165388,1739618282543,-151.0,0.0003,120]
[353165389,1739618282571,-193.31111111,0.0003,120]
[353165390,1739618282597,-5000.0,0.0003,120]
[353165391,1739618282624,-1047.20159426,0.0003,120]
[353165392,1739618282650,-399.0,0.0003,120]
[353165393,1739618282677,-500.0,0.0003,120]
[353165394,1739618282704,-300.83372018,0.0003,120]
[353165395,1739618282730,-1587.0,0.0003,120]
[353165396,1739618282757,-950.0,0.0003,120]
[353165397,1739618282782,-1985.83779351,0.0003,120]
[353165398,1739618282820,-180000.0,0.0003,120]
[353165399,1739618282857,-200.0,0.0003,120]
[353165400,1739618282883,-500.0,0.00030122,120]
[353165401,1739618282995,141811.97520894,0.00030127,120]
[353165402,1739618284916,601.45,0.00027397,120]
[353165403,1739618285299,800.0,0.00030137,120]
[353165404,1739618285568,157.29340956,0.00024149,120]
[353165405,1739618323183,1462.13005991,0.00020687,120]
[353165407,1739618378828,2500.0,0.00011122,120]
[353165408,1739618379448,2500.0,0.00011204,120]
[353165409,1739618379704,2500.0,0.00011287,120]
[353165410,1739618379958,2500.0,0.00011369,120]
[353165411,1739618380203,1797.28832569,0.00011451,120]
[353165413,1739618562199,477.40812037,0.0002069,120]
[353165414,1739618711029,1043.63325631,0.0002069,120]
[353165415,1739618720000,319.16581291,0.0002069,120]
[353165416,1739618721945,940.95504898,0.0002069,120]
[353165417,1739618727282,624.34048604,0.0002,120]
[353165418,1739618732360,873.28960756,0.0002,120]
[353165419,1739618741514,283.86822512,0.0002069,120]
[353165422,1739618754004,2394.94617916,0.0002069,120]
[353165423,1739618756396,189.92690913,0.00017,120]
[353165424,1739618773217,438.50383631,0.0002,120]
[353165425,1739618774426,224.77615251,0.0002069,120]
[353165426,1739618780809,225.59546314,0.0002069,120]
[353165427,1739618787735,190.39123495,0.0002069,120]
[353165428,1739618820949,256.76274041,0.0002069,120]
[353165432,1739618834276,252.97154776,0.0002069,120]
[353165433,1739618856060,395.94043172,0.0002069,120]
[353165434,1739618860493,-300.0,9.999e-05,2]
[353165435,1739618860520,-43049.2892,0.0001,2]
[353165436,1739618861543,167.10207312,0.0002069,120]
[353165437,1739618865845,513.43828474,0.0002069,120]
[353165438,1739618866963,205.34098477,0.0002069,120]
[353165439,1739618868068,1026.70607342,0.0002,120]
[353165440,1739618869798,225.41293978,0.0002069,120]
[353165441,1739618870795,373.01323559,0.0002,120]
[353165442,1739618874016,397.92476394,0.0002069,120]
[353165443,1739618893760,166.0731847,0.0002,120]
[353165444,1739618910828,1345.01026855,0.0002069,120]
[353165445,1739618913433,1410.67206705,0.0002069,120]
[353165446,1739618914948,200.64793717,0.0002069,120]
[353165447,1739618915702,170.26359232,0.0002069,120]
[353165448,1739618915759,747.08476857,0.0002069,120]
[353165449,1739618916115,185.74830894,0.0002,120]
[353165450,1739618916147,2959.68957432,0.0002069,120]
[353165451,1739618916205,162.52854511,0.0002069,120]
[353165452,1739618917138,151.22249743,0.0002069,120]
[353165453,1739618917170,2215.83399858,0.0002069,120]
[353165454,1739618918005,227.45173495,0.0002069,120]
[353165455,1739618918567,826.84137235,0.0002069,120]
[353165456,1739618921287,174.0502873,0.0002069,120]
[353165457,1739618921664,165.04271794,0.0002069,120]
[353165458,1739618923443,378.01856862,0.0002069,120]
[353165460,1739618924595,433.3952345,0.0001,120]
[353165461,1739618925412,306.79153866,0.0002,120]
[353165462,1739618925571,159.47047839,0.0002069,120]
[353165463,1739618925844,998.52545119,0.0002069,120]
[353165466,1739619001695,157.12778374,0.0002,120]
[353165472,1739619032108,-280.48515366,9.968e-05,2]
[353165474,1739619032119,-1041.73514213,0.0001,2]
[353165475,1739619032130,-900.40834603,0.0001,2]
[353165476,1739619032141,-4488.26790956,0.0001,2]
[353165477,1739619032170,-1527.60527267,0.0001,2]
[353165478,1739619032181,-10353.07447412,0.0001,2]
[353165479,1739619032234,-11132.56947922,0.0001,2]
[353165480,1739619032247,-4181.30460822,0.0001,2]
[353165481,1739619032257,-900.0,0.00010068,2]
[353165482,1739619032268,-900.0,0.00010068,2]
[353165483,1739619032277,-303.54,0.00010137,2]
[353165484,1739619032287,-1000.0,0.0001017,2]
[353165485,1739619032296,-150.0,0.00010332,2]
[353165486,1739619032304,-1238.26,0.00010336,2]
[353165487,1739619032314,-214.71722085,0.000108,2]
[353165488,1739619032323,-150.0,0.00010908,2]
[353165489,1739619032333,-500.0,0.00010958,2]
[353165490,1739619032342,-500.0,0.00010958,2]
[353165491,1739619032351,-500.0,0.00010958,2]
[353165492,1739619032361,-500.0,0.00010958,2]
[353165493,1739619032371,-500.0,0.00010958,2]
[353165494,1739619032380,-500.0,0.00010958,2]
[353165495,1739619032389,-500.0,0.00010958,2]
[353165496,1739619032398,-568.28,0.00010958,2]
[353165497,1739619032407,-500.0,0.00010958,2]
[353165498,1739619032416,-500.0,0.00010958,2]
[353165499,1739619032425,-500.0,0.00010958,2]
[353165500,1739619032434,-500.0,0.00010958,2]
[353165501,1739619032443,-500.0,0.00010958,2]
[353165502,1739619032452,-500.0,0.00010958,2]
[353165503,1739619032461,-82.92653396,0.00010958,2]
[353165504,1739619032473,-417.07346604,0.00010958,2]
[353165505,1739619032481,-500.0,0.00010958,2]
[353165506,1739619032490,-500.0,0.00010958,2]
[353165507,1739619032500,-500.0,0.00010958,2]
[353165508,1739619032511,-500.0,0.00010958,2]
[353165509,1739619032521,-32.92653596,0.00010958,2]
[353165510,1739619032547,-467.07346404,0.00010958,2]
[353165511,1739619032556,-340.07182576,0.00010958,2]
[353165512,1739619032568,-159.92817424,0.00010958,2]
[353165513,1739619032578,-500.0,0.00010958,2]
[353165514,1739619032587,-500.0,0.00010958,2]
[353165515,1739619032596,-500.0,0.00010958,2]
[353165516,1739619032606,-500.0,0.00010958,2]
[353165517,1739619032615,-500.0,0.00010958,2]
[353165518,1739619032625,-500.0,0.00010958,2]
[353165519,1739619032635,-500.0,0.00010958,2]
[353165520,1739619032644,-500.0,0.00010958,2]
[353165521,1739619032653,-500.0,0.00010958,2]
[353165522,1739619032663,-500.0,0.00010958,2]
[353165523,1739619032673,-500.0,0.00010958,2]
[353165524,1739619032682,-500.0,0.00010958,2]
[353165525,1739619032692,-500.0,0.00010958,2]
[353165527,1739619032703,-500.0,0.00010958,2]
[353165529,1739619032712,-500.0,0.00010958,2]
[353165531,1739619032721,-500.0,0.00010958,2]
[353165533,1739619032730,-303.45,0.00010958,2]
[353165535,1739619032739,-500.0,0.00010958,2]
[353165538,1739619032749,-500.0,0.00010958,2]
[353165540,1739619032762,-500.0,0.00010958,2]
[353165542,1739619032771,-500.0,0.00010958,2]
[353165544,1739619032780,-165.91,0.00010958,2]
[353165546,1739619032790,-500.0,0.00010958,2]
[353165548,1739619032799,-500.0,0.00010958,2]
[353165550,1739619032809,-500.0,0.00011039,2]
[353165551,1739619032818,-940.41,0.00011039,2]
[353165553,1739619032827,-500.0,0.00011039,2]
[353165555,1739619032836,-500.0,0.00011039,2]
[353165557,1739619032845,-694.41,0.00011039,2]
[353165559,1739619032854,-554.54,0.00011039,2]
[353165561,1739619032864,-786.58,0.00011039,2]
[353165563,1739619032873,-829.98,0.00011039,2]
[353165565,1739619032881,-500.0,0.00011039,2]
[353165567,1739619032890,-500.0,0.00011039,2]
[353165569,1739619032899,-606.13,0.00011039,2]
[353165571,1739619032908,-971.24,0.00011039,2]
[353165573,1739619032917,-500.0,0.00011039,2]
[353165575,1739619032927,-500.19,0.00011039,2]
[353165577,1739619032936,-888.16,0.00011039,2]
[353165579,1739619032945,-500.0,0.00011039,2]
[353165580,1739619032955,-500.0,0.00011039,2]
[353165581,1739619032964,-500.0,0.00011039,2]
[353165582,1739619032974,-500.0,0.00011039,2]
[353165583,1739619032983,-300.59234009,0.00011039,2]
[353165584,1739619032993,-500.0,0.00011039,2]
[353165585,1739619033002,-717.64,0.00011039,2]
[353165586,1739619033014,-1161.09,0.00011039,2]
[353165587,1739619033024,-500.0,0.00011039,2]
[353165588,1739619033034,-500.0,0.00011039,2]
[353165589,1739619033044,-500.0,0.00011039,2]
[353165590,1739619033055,-500.0,0.00011039,2]
[353165591,1739619033064,-500.0,0.00011039,2]
[353165592,1739619033075,-500.0,0.00011039,2]
[353165593,1739619033087,-500.0,0.00011039,2]
[353165594,1739619033097,-500.0,0.00011039,2]
[353165595,1739619033108,-500.0,0.00011039,2]
[353165596,1739619033119,-500.0,0.00011039,2]
[353165597,1739619033130,-835.01,0.00011039,2]
[353165598,1739619033140,-1195.38,0.00011039,2]
[353165599,1739619033150,-500.0,0.00011039,2]
[353165600,1739619033159,-500.0,0.00011039,2]
[353165601,1739619033170,-500.0,0.00011039,2]
[353165602,1739619033180,-500.0,0.00011039,2]
[353165603,1739619033190,-566.8,0.00011039,2]
[353165604,1739619033200,-500.0,0.00011039,2]
[353165605,1739619033209,-500.0,0.00011039,2]
[353165606,1739619033219,-500.0,0.0001104,2]
[353165607,1739619033229,-356.23619404,0.0001104,2]
[353165608,1739619033238,-500.0,0.0001104,2]
[353165609,1739619033248,-500.504831,0.0001104,2]
[353165610,1739619033258,-249.99026893,0.0001104,2]
[353165611,1739619033493,-250.88300141,0.0001104,2]
[353165612,1739619033504,-68.91456266,0.0001104,2]
[353165613,1739619033518,-431.08543734,0.0001104,2]
[353165614,1739619033528,-57.01586156,0.0001104,2]
[353165615,1739619033540,-444.033153,0.0001104,2]
[353165616,1739619033550,-500.0,0.0001104,2]
[353165617,1739619033560,-500.0,0.0001104,2]
[353165618,1739619033570,-500.0,0.0001104,2]
[353165619,1739619033580,-500.97585865,0.0001104,2]
[353165620,1739619033589,-500.0,0.0001104,2]
[353165621,1739619033599,-500.0,0.0001104,2]
[353165622,1739619033609,-222.30421584,0.0001104,2]
[353165623,1739619033619,-252.20488445,0.0001104,2]
[353165624,1739619033628,-283.49244313,0.0001104,2]
[353165625,1739619033640,-351.97427957,0.0001104,2]
[353165626,1739619033650,-181.17320664,0.0001104,2]
[353165627,1739619033660,-103.96132893,0.0001104,2]
[353165628,1739619033671,-396.03867107,0.0001104,2]
[353165629,1739619033681,-386.90132893,0.0001104,2]
[353165630,1739619033692,-113.09867107,0.0001104,2]
[353165631,1739619033703,-550.72606086,0.0001104,2]
[353165632,1739619033713,-56.50526807,0.0001104,2]
[353165633,1739619033724,-300.3,0.0001104,2]
[353165634,1739619033737,-143.19473193,0.0001104,2]
[353165635,1739619033747,-112.57526807,0.0001104,2]
[353165674,1739619038152,-505.82,0.00010958,2]
[353165676,1739619038162,-500.0,0.00011039,2]
[353165678,1739619038171,-136.29724043,0.00011039,2]
[353165681,1739619038184,-339.30327672,0.00011039,2]
[353165685,1739619038260,-24.39948285,0.00011039,2]
[353165686,1739619038270,-387.42473193,0.0001104,2]
[353165687,1739619038279,-500.0,0.0001104,2]
[353165688,1739619038288,-207.42945149,0.0001104,2]
[353165689,1739619038297,-500.0,0.0001104,2]
[353165690,1739619038307,-500.0,0.0001104,2]
[353165691,1739619038315,-601.0740305,0.0001104,2]
[353165692,1739619038324,-500.0,0.0001104,2]
[353165693,1739619038333,-505.54,0.0001104,2]
[353165694,1739619038343,-502.24877568,0.0001104,2]
[353165695,1739619038352,-500.0,0.0001104,2]
[353165696,1739619038361,-500.0,0.0001104,2]
[353165697,1739619038371,-508.3908451,0.0001104,2]
[353165698,1739619038380,-500.0,0.0001104,2]
[353165699,1739619038389,-500.0,0.0001104,2]
[353165700,1739619038398,-503.00059111,0.0001104,2]
[353165701,1739619038407,-500.0,0.0001104,2]
[353165702,1739619038416,-500.0,0.0001104,2]
[353165703,1739619038425,-500.0,0.0001104,2]
[353165704,1739619038434,-500.0,0.0001104,2]
[353165705,1739619038444,-500.0,0.0001104,2]
[353165706,1739619038454,-503.32841009,0.0001104,2]
[353165707,1739619038464,-500.0,0.0001104,2]
[353165708,1739619038473,-587.83,0.0001104,2]
[353165709,1739619038483,-500.0,0.0001104,2]
[353165710,1739619038492,-500.0,0.0001104,2]
[353165711,1739619038501,-190.22443998,0.0001104,2]
[353165724,1739619040110,-500.0,0.00011039,2]
[353165725,1739619040120,-500.0,0.00011039,2]
[353165726,1739619040129,-500.0,0.00011039,2]
[353165727,1739619040139,-519.07,0.00011039,2]
[353165728,1739619040149,-309.77556002,0.0001104,2]
[353165729,1739619040158,-103.19055264,0.0001104,2]
[353165730,1739619040169,-396.80944736,0.0001104,2]
[353165731,1739619040179,-500.0,0.0001104,2]
[353165732,1739619040189,-500.0,0.0001104,2]
[353165733,1739619040198,-500.0,0.0001104,2]
[353165734,1739619040207,-500.0,0.0001104,2]
[353165735,1739619040216,-500.0,0.0001104,2]
[353165736,1739619040225,-500.0,0.0001104,2]
[353165737,1739619040234,-500.0,0.0001104,2]
[353165738,1739619040243,-500.0,0.0001104,2]
[353165739,1739619040252,-500.0,0.0001104,2]
[353165740,1739619040261,-500.0,0.0001104,2]
[353165741,1739619040271,-500.0,0.0001104,2]
[353165742,1739619040280,-500.0,0.0001104,2]
[353165743,1739619040289,-158.93,0.0001104,2]
[353165744,1739619040298,-228.27635228,0.0001104,2]
[353165745,1739619040307,-500.0,0.0001104,2]
[353165746,1739619040317,-500.0,0.0001104,2]
[353165747,1739619040326,-168.87653092,0.0001104,2]
[353165748,1739619040335,-500.0,0.0001104,2]
[353165749,1739619040344,-327.30955675,0.0001104,2]
[353165750,1739619040353,-500.0,0.0001104,2]
[353165751,1739619040362,-500.0,0.0001104,2]
[353165752,1739619040371,-500.0,0.0001104,2]
[353165753,1739619040380,-500.0,0.0001104,2]
[353165754,1739619040389,-623.48,0.0001104,2]
[353165755,1739619040399,-540.23,0.0001104,2]
[353165756,1739619040409,-500.0,0.0001104,2]
[353165757,1739619040418,-500.0,0.0001104,2]
[353165758,1739619040427,-500.0,0.0001104,2]
[353165759,1739619040436,-500.0,0.0001104,2]
[353165760,1739619040446,-500.0,0.0001104,2]
[353165761,1739619040455,-554.03,0.0001104,2]
[353165762,1739619040464,-500.0,0.0001104,2]
[353165763,1739619040473,-500.0,0.0001104,2]
[353165764,1739619040483,-500.0,0.0001104,2]
[353165765,1739619040492,-2793.53,0.0001104,2]
[353165766,1739619040501,-500.0,0.0001104,2]
[353165767,1739619040511,-500.0,0.0001104,2]
[353165768,1739619040522,-125.95811269,0.0001104,2]
[353165769,1739619040534,-374.04188731,0.0001104,2]
[353165770,1739619040544,-191.188552,0.0001104,2]
[353165771,1739619040553,-500.0,0.0001104,2]
[353165772,1739619040562,-500.0,0.0001104,2]
[353165773,1739619040571,-500.0,0.0001104,2]
[353165774,1739619040580,-500.0,0.0001104,2]
[353165775,1739619040590,-185.717147,0.0001104,2]
[353165776,1739619040599,-634.16,0.0001104,2]
[353165777,1739619040608,-500.0,0.0001104,2]
[353165778,1739619040617,-500.0,0.0001104,2]
[353165779,1739619040626,-230.81623477,0.0001104,2]
[353165780,1739619040637,-269.18376523,0.0001104,2]
[353165781,1739619040647,-500.0,0.0001104,2]
[353165782,1739619040656,-500.0,0.0001104,2]
[353165783,1739619040665,-197.2479654,0.0001104,2]
[353165784,1739619040699,-302.7520346,0.0001104,2]
[353165785,1739619040708,-500.0,0.0001104,2]
[353165786,1739619040718,-500.0,0.0001104,2]
[353165787,1739619040727,-500.0,0.0001104,2]
[353165788,1739619040736,-548.64,0.0001104,2]
[353165789,1739619040745,-500.0,0.0001104,2]
[353165790,1739619040754,-316.29340586,0.0001104,2]
[353165791,1739619040763,-500.0,0.0001104,2]
[353165792,1739619040772,-500.0,0.0001104,2]
[353165793,1739619040782,-500.0,0.0001104,2]
[353165794,1739619040791,-502.0591427,0.0001104,2]
[353165795,1739619040801,-500.0,0.0001104,2]
[353165796,1739619040810,-500.0,0.0001104,2]
[353165797,1739619040819,-500.0,0.0001104,2]
[353165798,1739619040829,-502.74524634,0.0001104,2]
[353165799,1739619040838,-500.0,0.0001104,2]
[353165800,1739619040848,-500.0,0.0001104,2]
[353165801,1739619040857,-500.0,0.0001104,2]
[353165802,1739619040866,-501.85892391,0.0001104,2]
[353165803,1739619040875,-500.0,0.0001104,2]
[353165804,1739619040884,-500.0,0.0001104,2]
[353165805,1739619040893,-500.0,0.0001104,2]
[353165806,1739619040902,-500.0,0.0001104,2]
[353165807,1739619040912,-500.0,0.0001104,2]
[353165808,1739619040920,-500.0,0.0001104,2]
[353165809,1739619040929,-500.0,0.0001104,2]
[353165810,1739619040939,-500.0,0.0001104,2]
[353165811,1739619040949,-500.0,0.0001104,2]
[353165812,1739619040959,-500.0,0.0001104,2]
[353165813,1739619040971,-500.0,0.0001104,2]
[353165814,1739619040980,-504.89439029,0.0001104,2]
[353165815,1739619040990,-505.58660641,0.0001104,2]
[353165816,1739619040999,-500.0,0.0001104,2]
[353165817,1739619041008,-500.0,0.0001104,2]
[353165818,1739619041019,-500.0,0.0001104,2]
[353165819,1739619041029,-500.0,0.0001104,2]
[353165820,1739619041038,-183.845149,0.0001104,2]
[353165821,1739619041048,-522.13,0.0001104,2]
[353165822,1739619041058,-500.0,0.0001104,2]
[353165823,1739619041067,-500.0,0.0001104,2]
[353165824,1739619041076,-500.0,0.0001104,2]
[353165825,1739619041087,-500.0,0.0001104,2]
[353165826,1739619041099,-500.0,0.0001104,2]
[353165827,1739619041108,-500.0,0.0001104,2]
[353165828,1739619041117,-500.0,0.0001104,2]
[353165829,1739619041127,-596.55,0.0001104,2]
[353165830,1739619041137,-500.0,0.0001104,2]
[353165831,1739619041146,-628.66,0.0001104,2]
[353165832,1739619041155,-203.237367,0.0001104,2]
[353165833,1739619041165,-500.0,0.0001104,2]
[353165834,1739619041176,-500.0,0.0001104,2]
[353165835,1739619041186,-500.0,0.0001104,2]
[353165836,1739619041195,-526.64,0.0001104,2]
[353165837,1739619041204,-500.0,0.0001104,2]
[353165838,1739619041213,-500.0,0.0001104,2]
[353165839,1739619041222,-500.09923759,0.0001104,2]
[353165840,1739619041297,-119.77076241,0.0001104,2]
[353165841,1739619041306,-500.0,0.0001104,2]
[353165842,1739619041315,-183.58723759,0.0001104,2]
[353165843,1739619041327,-316.41276241,0.0001104,2]
[353165844,1739619041336,-1162.02,0.0001104,2]
[353165845,1739619041344,-500.0,0.0001104,2]
[353165846,1739619041353,-500.0,0.0001104,2]
[353165847,1739619041362,-500.0,0.0001104,2]
[353165848,1739619041371,-837.66,0.0001104,2]
[353165849,1739619041380,-500.0,0.0001104,2]
[353165850,1739619041389,-646.81,0.0001104,2]
[353165851,1739619041399,-531.07,0.0001104,2]
[353165852,1739619041408,-500.0,0.0001104,2]
[353165853,1739619041418,-500.0,0.0001104,2]
[353165854,1739619041427,-500.0,0.0001104,2]
[353165855,1739619041437,-500.0,0.0001104,2]
[353165856,1739619041446,-784.31,0.0001104,2]
[353165857,1739619041455,-500.0,0.0001104,2]
[353165858,1739619041465,-530.40543059,0.0001104,2]
[353165859,1739619041474,-500.0,0.0001104,2]
[353165860,1739619041483,-500.0,0.0001104,2]
[353165861,1739619041492,-500.0,0.0001104,2]
[353165862,1739619041501,-1107.07,0.0001104,2]
[353165863,1739619041510,-500.0,0.0001104,2]
[353165864,1739619041522,-1000.0,0.0001104,2]
[353165865,1739619041532,-819.55,0.0001104,2]
[353165866,1739619041541,-843.68,0.0001104,2]
[353165867,1739619041551,-500.0,0.0001104,2]
[353165868,1739619041560,-647.45,0.0001104,2]
[353165869,1739619041569,-500.0,0.0001104,2]